fUSD/lending_fUSD_20240429
["ID","MTS","AMOUNT","RATE_DAILY","PERIOD"]
[324830261,1714359033936,-2000.0,9.4e-05,2]
[324830263,1714359033947,-797.10954043,9.4e-05,2]
[324830264,1714359033956,-3118.67766334,9.446e-05,2]
[324830265,1714359033968,-5267.70097118,9.446e-05,2]
[324830266,1714359033980,-3994.47293492,9.446e-05,2]
[324830267,1714359033991,-7978.076391,9.446e-05,2]
[324830268,1714359034004,-183.66295521,9.446e-05,2]
[324830269,1714359034014,-209.22,9.447e-05,2]
[324830270,1714359034024,-158.74333394,0.00010813,2]
[324830271,1714359034033,-1251.42493624,0.00011,2]
[324830272,1714359034042,-150.0,0.00011014,2]
[324830273,1714359034051,-499.99,0.00011063,2]
[324830274,1714359034064,-597.87,0.00011163,2]
[324830275,1714359034073,-250.0,0.00011164,2]
[324830276,1714359034082,-150.0,0.00011188,2]
[324830277,1714359034092,-170.09,0.0001125,2]
[324830278,1714359034102,-217.27,0.00011351,2]
[324830279,1714359034112,-889.77,0.00011441,2]
[324830280,1714359034121,-1562.55877461,0.00011442,2]
[324830281,1714359034133,-1501.8336298,0.00011442,2]
[324830282,1714359034145,-1403.8,0.00011442,2]
[324830283,1714359034157,-1623.1694,0.00011442,2]
[324830284,1714359034169,-294.84723168,0.00011442,2]
[324830285,1714359034180,-888.31964431,0.00011442,2]
[324830291,1714359038593,-1532.69967432,0.00011442,2]
[324830294,1714359038605,-3952.36995,0.00011442,2]
[324830296,1714359038616,-225.73169528,0.00011442,2]
[324830298,1714359038626,-813.57,0.00011461,2]
[324830300,1714359038635,-16.61544092,0.00011478,2]
[324830327,1714359038881,-3864.23455908,0.00011478,2]
[324830329,1714359038891,-209.22,0.00011711,2]
[324830330,1714359038900,-170.09,0.00011836,2]
[324830332,1714359038910,-751.50500228,0.00011999,2]
[324830333,1714359038919,-15168.30030773,0.00012,2]
[324830334,1714359038928,-409.29540933,0.00012276,2]
[324830335,1714359038938,-5000.0,0.00012277,2]
[324830336,1714359038947,-150.0,0.00012278,2]
[324830337,1714359038956,-300.0,0.00012278,2]
[324830338,1714359038965,-159.42,0.00012278,2]
[324830339,1714359038974,-350.31,0.00012278,2]
[324830340,1714359038983,-546.0,0.00012329,2]
[324830341,1714359038993,-392.26263285,0.00012339,2]
[324830342,1714359039002,-162.87,0.00012378,2]
[324830343,1714359039017,-150.0,0.00012378,2]
[324830344,1714359039026,-150.0,0.00012378,2]
[324830345,1714359039035,-350.55,0.00012378,2]
[324830346,1714359039044,-155.0,0.000127,2]
[324830347,1714359039054,-180.77,0.00012705,2]
[324830348,1714359039068,-217.27,0.0001277,2]
[324830349,1714359039077,-2677.9181,0.00012783,2]
[324830350,1714359039086,-4568.8475,0.00012783,2]
[324830351,1714359039095,-1000.0,0.00012784,2]
[324830352,1714359039105,-1000.0,0.00012797,2]
[324830353,1714359039114,-500.0,0.00012797,2]
[324830354,1714359039123,-3992.13,0.000128,2]
[324830355,1714359039132,-4636.50648873,0.00012858,2]
[324830356,1714359039145,-2623.61627595,0.00012858,2]
[324830357,1714359039156,-1550.1220428,0.00012858,2]
[324830371,1714359041190,-333.3976716,0.00012858,2]
[324830372,1714359041202,-3597.57000588,0.00012858,2]
[324830373,1714359041212,-546.0,0.00012877,2]
[324830374,1714359041222,-500.0,0.00012882,2]
[324830375,1714359041231,-513.61814197,0.00012882,2]
[324830376,1714359041241,-500.0,0.00012882,2]
[324830377,1714359041250,-500.0,0.00012882,2]
[324830378,1714359041261,-523.38376578,0.00012882,2]
[324830379,1714359041270,-336.86074205,0.00012882,2]
[324830380,1714359041282,-163.13925795,0.00012882,2]
[324830381,1714359041291,-150.06151498,0.00012882,2]
[324830382,1714359041300,-500.0,0.00012882,2]
[324830383,1714359041309,-93.45922707,0.00012882,2]
[324830384,1714359041321,-503.98332252,0.00012882,2]
[324830385,1714359041330,-152.0948809,0.00012883,2]
[324830386,1714359041342,-361.77926927,0.00012883,2]
[324830387,1714359041352,-502.19813756,0.00012883,2]
[324830388,1714359041361,-500.0,0.00012883,2]
[324830389,1714359041370,-160.67727822,0.00012883,2]
[324830390,1714359041379,-251.77531478,0.00012883,2]
[324830440,1714359044178,-257.79897169,0.00012883,2]
[324830441,1714359044187,-217.87361872,0.00012883,2]
[324830442,1714359044199,-877.45638128,0.00012883,2]
[324830443,1714359044208,-1023.96,0.00012883,2]
[324830444,1714359044218,-2519.64,0.00012883,2]
[324830445,1714359044227,-175.14062915,0.00012883,2]
[324830446,1714359044240,-324.85937085,0.00012883,2]
[324830447,1714359044250,-2192.38056791,0.00012889,2]
[324830448,1714359044264,-5307.61943209,0.00012889,2]
[324830449,1714359044273,-236.80841904,0.0001289,2]
[324830450,1714359044282,-1390.75257507,0.0001289,2]
[324830451,1714359044291,-418.55493597,0.0001289,2]
[324830452,1714359044300,-813.57,0.00012894,2]
[324830453,1714359044309,-236.80841902,0.00012895,2]
[324830454,1714359044318,-1390.75257507,0.00012895,2]
[324830455,1714359044327,-363.84785056,0.00012899,2]
[324830456,1714359044337,-236.80841902,0.000129,2]
[324830457,1714359044346,-1802.61552,0.000129,2]
[324830458,1714359044355,-1390.75257507,0.000129,2]
[324830459,1714359044364,-152.0,0.0001295,3]
[324830460,1714359044374,-366.0,0.0001296,2]
[324830461,1714359044383,-1233.064,0.00012967,2]
[324830462,1714359044392,-153.034,0.00012967,2]
[324830463,1714359044402,-208.0,0.00012967,2]
[324830464,1714359044411,-160.699,0.00012967,2]
[324830465,1714359044420,-194.016,0.00012967,2]
[324830466,1714359044429,-200.0,0.00012967,2]
[324830467,1714359044438,-272.292,0.00012967,2]
[324830468,1714359044447,-2046.17796797,0.00012976,2]
[324830469,1714359044457,-1002.4505775,0.00012977,2]
[324830470,1714359044466,-168.32649069,0.0001298,2]
[324830471,1714359044475,-2287.4,0.00012987,2]
[324830472,1714359044485,-253.620327,0.00012987,2]
[324830473,1714359044494,-500.0,0.00012987,2]
[324830474,1714359044503,-500.0,0.00012987,2]
[324830475,1714359044514,-151.0,0.00012987,2]
[324830476,1714359044523,-537.84480661,0.00012987,2]
[324830477,1714359044532,-500.0,0.00012987,2]
[324830478,1714359044541,-500.0,0.00012987,2]
[324830479,1714359044551,-500.0,0.00012987,2]
[324830480,1714359044559,-500.0,0.00012987,2]
[324830481,1714359044568,-596.10618754,0.00012987,2]
[324830482,1714359044578,-500.0,0.00012987,2]
[324830483,1714359044587,-508.49110427,0.00012987,2]
[324830484,1714359044596,-500.0,0.00012987,2]
[324830485,1714359044606,-500.0,0.00012987,2]
[324830486,1714359044615,-500.0,0.00012987,2]
[324830487,1714359044624,-500.0,0.00012987,2]
[324830488,1714359044633,-500.0,0.00012987,2]
[324830489,1714359044642,-500.0,0.00012987,2]
[324830491,1714359044651,-500.0,0.00012987,2]
[324830493,1714359044660,-500.0,0.00012987,2]
[324830495,1714359044669,-433.39190892,0.00012987,2]
[324830506,1714359046844,-242.56523371,0.00012899,2]
[324830507,1714359046854,-158.232,0.00012967,2]
[324830508,1714359046864,-66.60809108,0.00012987,2]
[324830509,1714359046873,-500.0,0.00012987,2]
[324830510,1714359046882,-597.65,0.00012987,2]
[324830511,1714359046891,-523.75,0.00012987,2]
[324830512,1714359046900,-151.0,0.00012987,2]
[324830513,1714359046911,-151.0,0.00012987,2]
[324830514,1714359046920,-1330.14,0.00012987,2]
[324830515,1714359046930,-7647.45,0.00012987,2]
[324830516,1714359046939,-518.78554521,0.00012987,2]
[324830517,1714359046948,-90.24345706,0.00012987,2]
[324830518,1714359046960,-409.75654294,0.00012987,2]
[324830519,1714359046969,-151.0,0.00012987,2]
[324830520,1714359046978,-500.0,0.00012987,2]
[324830521,1714359046987,-151.0,0.00012987,2]
[324830522,1714359046996,-287.94389141,0.00012987,2]
[324830523,1714359047005,-10.29956565,0.00012987,2]
[324830524,1714359047129,-418.55493596,0.000129,2]
[324830525,1714359047140,-489.70043435,0.00012987,2]
[324830526,1714359047150,-500.0,0.00012987,2]
[324830527,1714359047160,-500.0,0.00012987,2]
[324830528,1714359047169,-500.0,0.00012987,2]
[324830529,1714359047178,-590.32926575,0.00012987,2]
[324830530,1714359047187,-151.0,0.00012987,2]
[324830531,1714359047196,-1618.35,0.00012987,2]
[324830532,1714359047209,-500.0,0.00012987,2]
[324830533,1714359047218,-500.0,0.00012987,2]
[324830534,1714359047227,-941.67,0.00012987,2]
[324830535,1714359047236,-500.0,0.00012987,2]
[324830536,1714359047245,-500.0,0.00012987,2]
[324830537,1714359047255,-500.0,0.00012987,2]
[324830538,1714359047266,-986.91,0.00012987,2]
[324830539,1714359047276,-500.0,0.00012987,2]
[324830540,1714359047285,-500.0,0.00012987,2]
[324830541,1714359047294,-522.20134973,0.00012987,2]
[324830542,1714359047303,-926.32,0.00012987,2]
[324830543,1714359047312,-516.53,0.00012987,2]
[324830544,1714359047321,-2442.1,0.00012987,2]
[324830545,1714359047331,-965.42,0.00012987,2]
[324830546,1714359047340,-500.0,0.00012987,2]
[324830547,1714359047350,-588.12371029,0.00012987,2]
[324830548,1714359047359,-500.0,0.00012987,2]
[324830549,1714359047369,-591.94443277,0.00012987,2]
[324830550,1714359047378,-500.0,0.00012987,2]
[324830551,1714359047388,-500.0,0.00012987,2]
[324830552,1714359047397,-556.43,0.00012987,2]
[324830553,1714359047407,-500.0,0.00012987,2]
[324830554,1714359047416,-500.0,0.00012987,2]
[324830555,1714359047425,-500.0,0.00012987,2]
[324830556,1714359047435,-511.02062102,0.00012987,2]
[324830557,1714359047444,-500.0,0.00012987,2]
[324830558,1714359047453,-500.0,0.00012987,2]
[324830559,1714359047462,-500.0,0.00012987,2]
[324830560,1714359047471,-734.89,0.00012987,2]
[324830561,1714359047481,-500.0,0.00012987,2]
[324830562,1714359047490,-208.93025622,0.00012987,2]
[324830563,1714359047499,-887.35,0.00012987,2]
[324830564,1714359047508,-520.72,0.00012987,2]
[324830565,1714359047520,-597.42408044,0.00012987,2]
[324830566,1714359047530,-726.17,0.00012987,2]
[324830567,1714359047539,-500.0,0.00012987,2]
[324830568,1714359047548,-1078.71,0.00012987,2]
[324830569,1714359047557,-930.16,0.00012987,2]
[324830570,1714359047566,-500.0,0.00012987,2]
[324830571,1714359047575,-500.0,0.00012987,2]
[324830572,1714359047585,-500.0,0.00012987,2]
[324830573,1714359047594,-500.0,0.00012987,2]
[324830574,1714359047603,-500.0,0.00012987,2]
[324830575,1714359047613,-500.0,0.00012987,2]
[324830576,1714359047622,-2490.31,0.00012987,2]
[324830577,1714359047631,-240.76794012,0.00012987,2]
[324830578,1714359047640,-151.0,0.00012987,2]
[324830579,1714359047649,-500.0,0.00012987,2]
[324830580,1714359047658,-827.57,0.00012987,2]
[324830581,1714359047668,-185.495059,0.00012987,2]
[324830582,1714359047678,-642.38,0.00012987,2]
[324830583,1714359047687,-500.0,0.00012987,2]
[324830584,1714359047696,-500.0,0.00012987,2]
[324830585,1714359047706,-535.61559457,0.00012987,2]
[324830586,1714359047715,-500.0,0.00012987,2]
[324830587,1714359047725,-2653.83,0.00012987,2]
[324830588,1714359047735,-202.23576573,0.00012987,2]
[324830589,1714359047744,-500.0,0.00012987,2]
[324830590,1714359047753,-825.2,0.00012987,2]
[324830591,1714359047764,-500.0,0.00012987,2]
[324830592,1714359047773,-500.0,0.00012987,2]
[324830593,1714359047783,-500.0,0.00012987,2]
[324830594,1714359047792,-500.0,0.00012987,2]
[324830595,1714359047801,-292.54962542,0.00012987,2]
[324830596,1714359047811,-500.0,0.00012987,2]
[324830597,1714359047821,-500.0,0.00012987,2]
[324830598,1714359047831,-500.0,0.00012987,2]
[324830599,1714359047840,-151.0,0.00012987,2]
[324830600,1714359047850,-151.0,0.00012987,2]
[324830601,1714359047860,-8184.77,0.00012987,2]
[324830602,1714359047869,-567.05852957,0.00012987,2]
[324830603,1714359047879,-151.0,0.00012987,2]
[324830604,1714359047888,-2255.6598124,0.00012988,2]
[324830605,1714359047898,-1638.71493666,0.00012988,2]
[324830606,1714359047907,-155.0,0.00012988,2]
[324830607,1714359047917,-71224.50588879,0.00012988,2]
[324830608,1714359047927,-369.83605015,0.00012988,2]
[324830962,1714360231744,-621.95932919,9.804e-05,2]
[324830963,1714360231754,-247.18,9.805e-05,2]
[324830964,1714360231763,-100.60895544,0.0001,2]
[324830965,1714360231775,-117.26287523,0.0001,2]
[324830966,1714360231784,-155.0,0.0001,2]
[324830967,1714360231795,-150.0,0.00010993,2]
[324830968,1714360231805,-200.83141277,0.00011,2]
[324830969,1714360231814,-749.93391595,0.00011,2]
[324830970,1714360231824,-195.27714605,0.00011,2]
[324830971,1714360231835,-943.97955516,0.00011,2]
[324830972,1714360231931,-110.74329879,0.00011,2]
[324830973,1714360231941,-315.89670125,0.00011646,2]
[324830974,1714360231953,-172.24329875,0.00011646,2]
[324830975,1714360231965,-250.0,0.00011685,2]
[324830976,1714360231975,-150.0,0.00011698,2]
[324830977,1714360231985,-389.03,0.00011699,2]
[324830978,1714360231994,-156.58,0.00011712,2]
[324830979,1714360232004,-569.26385193,0.0001174,2]
[324830980,1714360232015,-449.99614807,0.0001174,2]
[324830981,1714360232025,-499.99,0.00011759,2]
[324830982,1714360232035,-269.63,0.00011775,2]
[324830983,1714360232045,-265.76642863,0.00012,2]
[324830984,1714360232907,-3177.70647144,0.00012,2]
[324830985,1714360232918,-4352.0687415,0.00012,2]
[324830986,1714360232930,-7214.2758574,0.00012,2]
[324830987,1714360232939,-5000.0,0.00012,2]
[324830988,1714360232948,-250.0,0.00012,2]
[324830989,1714360232957,-409.29540933,0.00012068,2]
[324830990,1714360232967,-247.18,0.00012069,2]
[324830991,1714360232976,-558.0,0.00012329,2]
[324830992,1714360232985,-825.72,0.00012341,2]
[324830993,1714360232995,-150.0,0.00012478,2]
[324830994,1714360233004,-150.0,0.00012478,2]
[324830995,1714360233014,-150.0,0.00012478,2]
[324830996,1714360233023,-150.0,0.00012478,2]
[324830997,1714360233032,-287.07202009,0.000125,2]
[324830998,1714360233041,-155.0,0.000127,2]
[324830999,1714360233050,-1005.1190424,0.00012728,2]
[324831000,1714360233060,-366.3759,0.00012782,2]
[324831001,1714360233069,-1000.0,0.0001284,2]
[324831002,1714360233078,-5016.6406314,0.00012875,2]
[324831003,1714360233099,-558.0,0.00012877,2]
[324831004,1714360233110,-3365.0344,0.00012887,2]
[324831005,1714360233120,-334.6985,0.00012888,2]
[324831006,1714360233130,-2185.73081459,0.00012889,2]
[324831007,1714360233140,-166.56,0.0001289,2]
[324831008,1714360233150,-397.42496431,0.0001289,2]
[324831009,1714360233159,-318.79096754,0.0001289,2]
[324831010,1714360233169,-154.69618585,0.0001289,2]
[324831011,1714360233178,-29017.23869223,0.0001289,2]
[324831012,1714360233205,-1373.27,0.0001289,2]
[324831013,1714360233222,-45178.38930777,0.0001289,2]
[324831014,1714360233231,-7500.0,0.0001289,2]
[324831015,1714360233241,-397.42496425,0.00012891,2]
[324831016,1714360233252,-318.79096748,0.00012891,2]
[324831017,1714360233261,-397.42496425,0.00012892,2]
[324831018,1714360233271,-318.79096748,0.00012892,2]
[324831020,1714360233281,-397.42496425,0.00012893,2]
[324831021,1714360233290,-318.79096748,0.00012893,2]
[324831022,1714360233300,-397.42496425,0.00012894,2]
[324831023,1714360233310,-318.79096748,0.00012894,2]
[324831024,1714360233319,-397.42496425,0.00012895,2]
[324831025,1714360233329,-154.69618583,0.00012895,2]
[324831026,1714360233338,-397.42496425,0.00012895,2]
[324831027,1714360233347,-318.79096748,0.00012896,2]
[324831028,1714360233357,-397.42496425,0.00012896,2]
[324831029,1714360233367,-318.79096748,0.00012897,2]
[324831030,1714360233377,-397.42496425,0.00012897,2]
[324831031,1714360233386,-318.79096748,0.00012898,2]
[324831032,1714360233401,-397.42496425,0.00012898,2]
[324831033,1714360233410,-318.79096748,0.00012899,2]
[324831034,1714360233421,-397.42496425,0.00012899,2]
[324831035,1714360233430,-1667.089,0.000129,2]
[324831036,1714360233442,-397.42496425,0.000129,2]
[324831037,1714360233451,-318.79096748,0.000129,2]
[324831038,1714360233463,-154.344,0.00012967,2]
[324831039,1714360233474,-152.399,0.00012967,2]
[324831040,1714360233483,-161.343,0.00012967,2]
[324831041,1714360233493,-275.0,0.00012976,2]
[324831042,1714360233503,-158.81,0.00012976,2]
[324831043,1714360233512,-811.12762409,0.00012977,2]
[324831044,1714360233522,-772.3450439,0.00012977,2]
[324831045,1714360233531,-286.47473396,0.00012977,2]
[324831046,1714360233541,-157.07,0.00012977,2]
[324831047,1714360233551,-500.0,0.00012986,2]
[324831048,1714360233561,-500.0,0.00012986,2]
[324831049,1714360233571,-500.0,0.00012986,2]
[324831050,1714360233580,-525.41464446,0.00012986,2]
[324831051,1714360233589,-1350.57,0.00012986,2]
[324831052,1714360233599,-500.0,0.00012986,2]
[324831053,1714360233609,-500.0,0.00012986,2]
[324831054,1714360233618,-500.0,0.00012986,2]
[324831055,1714360233628,-500.0,0.00012986,2]
[324831056,1714360233637,-520.13459674,0.00012986,2]
[324831057,1714360233647,-617.89,0.00012986,2]
[324831058,1714360233656,-500.0,0.00012986,2]
[324831059,1714360233665,-500.0,0.00012986,2]
[324831060,1714360233676,-500.0,0.00012986,2]
[324831061,1714360233685,-502.34370168,0.00012986,2]
[324831062,1714360233695,-500.0,0.00012986,2]
[324831063,1714360233705,-500.0,0.00012986,2]
[324831064,1714360233717,-500.0,0.00012986,2]
[324831065,1714360233726,-507.98165993,0.00012986,2]
[324831066,1714360233735,-521.32324705,0.00012986,2]
[324831067,1714360233744,-552.33,0.00012986,2]
[324831068,1714360233754,-500.0,0.00012986,2]
[324831070,1714360233763,-500.0,0.00012986,2]
[324831071,1714360233773,-500.0,0.00012986,2]
[324831072,1714360233782,-505.70773034,0.00012986,2]
[324831074,1714360233791,-500.0,0.00012986,2]
[324831075,1714360233801,-500.0,0.00012986,2]
[324831076,1714360233810,-1152.86,0.00012986,2]
[324831077,1714360233820,-500.0,0.00012986,2]
[324831078,1714360233829,-500.0,0.00012986,2]
[324831079,1714360233838,-500.0,0.00012986,2]
[324831080,1714360233848,-500.0,0.00012986,2]
[324831081,1714360233857,-236.5266304,0.00012986,2]
[324831082,1714360233866,-500.0,0.00012986,2]
[324831083,1714360233876,-1113.6,0.00012986,2]
[324831084,1714360233885,-500.0,0.00012986,2]
[324831085,1714360233894,-526.51,0.00012986,2]
[324831086,1714360233904,-725.11,0.00012986,2]
[324831087,1714360233913,-500.0,0.00012986,2]
[324831088,1714360233923,-1872.2,0.00012986,2]
[324831089,1714360233933,-500.0,0.00012986,2]
[324831090,1714360233942,-500.0,0.00012986,2]
[324831091,1714360233951,-746.14,0.00012986,2]
[324831092,1714360233963,-1084.51,0.00012986,2]
[324831093,1714360233972,-959.87,0.00012986,2]
[324831094,1714360233981,-500.0,0.00012986,2]
[324831095,1714360233991,-500.0,0.00012986,2]
[324831096,1714360234000,-500.0,0.00012986,2]
[324831097,1714360234009,-500.0,0.00012986,2]
[324831098,1714360234019,-500.0,0.00012986,2]
[324831099,1714360234028,-554.08,0.00012986,2]
[324831100,1714360234037,-500.0,0.00012986,2]
[324831101,1714360234046,-500.0,0.00012986,2]
[324831102,1714360234056,-500.0,0.00012986,2]
[324831103,1714360234065,-500.0,0.00012986,2]
[324831104,1714360234075,-546.74,0.00012986,2]
[324831105,1714360234085,-2784.4,0.00012986,2]
[324831106,1714360234095,-528.48,0.00012986,2]
[324831107,1714360234104,-500.0,0.00012986,2]
[324831108,1714360234114,-920.19,0.00012986,2]
[324831109,1714360234124,-938.81,0.00012986,2]
[324831110,1714360234134,-527.44454802,0.00012986,2]
[324831111,1714360234145,-500.0,0.00012986,2]
[324831112,1714360234155,-500.0,0.00012986,2]
[324831113,1714360234164,-500.0,0.00012986,2]
[324831114,1714360234173,-859.25,0.00012986,2]
[324831115,1714360234183,-500.0,0.00012986,2]
[324831116,1714360234192,-500.0,0.00012986,2]
[324831117,1714360234201,-500.0,0.00012986,2]
[324831118,1714360234213,-567.26083093,0.00012986,2]
[324831119,1714360234222,-500.0,0.00012986,2]
[324831120,1714360234232,-500.0,0.00012986,2]
[324831121,1714360234241,-500.0,0.00012986,2]
[324831122,1714360234250,-5062.91,0.00012986,2]
[324831123,1714360234259,-500.0,0.00012986,2]
[324831124,1714360234269,-500.0,0.00012986,2]
[324831125,1714360234278,-500.0,0.00012986,2]
[324831126,1714360234288,-500.0,0.00012986,2]
[324831127,1714360234297,-500.0,0.00012986,2]
[324831128,1714360234308,-500.0,0.00012986,2]
[324831129,1714360234318,-500.0,0.00012986,2]
[324831130,1714360234327,-500.0,0.00012986,2]
[324831131,1714360234337,-500.0,0.00012986,2]
[324831132,1714360234346,-500.0,0.00012986,2]
[324831133,1714360234356,-865.39,0.00012986,2]
[324831134,1714360234366,-500.0,0.00012986,2]
[324831135,1714360234376,-500.0,0.00012986,2]
[324831136,1714360234386,-500.0,0.00012986,2]
[324831137,1714360234398,-242.56523371,0.00012987,2]
[324831138,1714360234408,-500.0,0.00012987,2]
[324831139,1714360234418,-500.0,0.00012987,2]
[324831140,1714360234431,-500.0,0.00012987,2]
[324831141,1714360234442,-509.57797981,0.00012987,2]
[324831142,1714360234451,-500.0,0.00012987,2]
[324831143,1714360234462,-505.05082423,0.00012987,2]
[324831144,1714360234476,-500.0,0.00012987,2]
[324831145,1714360234486,-626.75962175,0.00012987,2]
[324831146,1714360234495,-500.0,0.00012987,2]
[324831147,1714360234509,-515.07731729,0.00012987,2]
[324831148,1714360234518,-518.33443864,0.00012987,2]
[324831149,1714360234527,-500.0,0.00012987,2]
[324831150,1714360234538,-500.0,0.00012987,2]
[324831151,1714360234548,-513.41786394,0.00012987,2]
[324831152,1714360234557,-500.0,0.00012987,2]
[324831153,1714360234566,-500.0,0.00012987,2]
[324831154,1714360234575,-505.00328794,0.00012987,2]
[324831155,1714360234585,-500.0,0.00012987,2]
[324831156,1714360234594,-506.38073647,0.00012987,2]
[324831157,1714360234604,-500.0,0.00012987,2]
[324831158,1714360234614,-500.0,0.00012987,2]
[324831159,1714360234623,-517.33131746,0.00012987,2]
[324831160,1714360234632,-502.16308347,0.00012987,2]
[324831161,1714360234640,-471.59805168,0.00012987,2]
[324831162,1714360234651,-500.0,0.00012987,2]
[324831163,1714360234660,-500.0,0.00012987,2]
[324831164,1714360234669,-503.67760458,0.00012987,2]
[324831165,1714360234678,-509.38142537,0.00012987,2]
[324831166,1714360234687,-443.69573183,0.00012987,2]
[324831167,1714360234698,-502.78674103,0.00012987,2]
[324831168,1714360234707,-185.7541211,0.00012987,2]
[324831169,1714360234723,-513.49512256,0.00012987,2]
[324831170,1714360234732,-555.90643554,0.00012987,2]
[324831171,1714360234741,-504.91227822,0.00012987,2]
[324831172,1714360234750,-524.55535892,0.00012987,2]
[324831173,1714360234759,-504.32022489,0.00012987,2]
[324831174,1714360234769,-500.0,0.00012987,2]
[324831175,1714360234778,-500.0,0.00012987,2]
[324831176,1714360234787,-484.83043044,0.00012987,2]
[324831177,1714360234797,-500.0,0.00012987,2]
[324831178,1714360234807,-531.4709592,0.00012987,2]
[324831179,1714360234816,-502.14737705,0.00012987,2]
[324831180,1714360234826,-323.12772397,0.00012987,2]
[324831181,1714360234835,-183.2,0.00012987,2]
[324831182,1714360234844,-500.0,0.00012987,2]
[324831183,1714360234853,-499.2326945,0.00012987,2]
[324831184,1714360234863,-512.32319831,0.00012987,2]
[324831185,1714360234872,-500.0,0.00012987,2]
[324831186,1714360234881,-157.93904395,0.00012987,2]
[324831187,1714360234890,-500.0,0.00012987,2]
[324831188,1714360234899,-504.48421326,0.00012987,2]
[324831189,1714360234909,-500.0,0.00012987,2]
[324831190,1714360234918,-534.19238208,0.00012987,2]
[324831191,1714360234928,-522.48977995,0.00012987,2]
[324831192,1714360234937,-500.0,0.00012987,2]
[324831193,1714360234946,-531.23264037,0.00012987,2]
[324831194,1714360234955,-513.61213362,0.00012987,2]
[324831195,1714360234966,-500.0,0.00012987,2]
[324831196,1714360234975,-590.75,0.00012987,2]
[324831197,1714360234984,-503.53111428,0.00012987,2]
[324831198,1714360234993,-512.42785199,0.00012987,2]
[324831199,1714360235002,-566.05591883,0.00012987,2]
[324831200,1714360235012,-500.0,0.00012987,2]
[324831201,1714360235021,-506.23565819,0.00012987,2]
[324831202,1714360235031,-500.0,0.00012987,2]
[324831203,1714360235041,-500.0,0.00012987,2]
[324831204,1714360235050,-500.0,0.00012987,2]
[324831205,1714360235060,-313.52013099,0.00012987,2]
[324831206,1714360235069,-522.33656047,0.00012987,2]
[324831207,1714360235079,-507.42179526,0.00012987,2]
[324831208,1714360235088,-261.77560631,0.00012987,2]
[324831209,1714360235098,-981.3,0.00012987,2]
[324831210,1714360235107,-605.70925729,0.00012987,2]
[324831211,1714360235116,-512.91587126,0.00012987,2]
[324831212,1714360235125,-500.0,0.00012987,2]
[324831213,1714360235135,-500.0,0.00012987,2]
[324831214,1714360235144,-500.0,0.00012987,2]
[324831215,1714360235153,-500.0,0.00012987,2]
[324831216,1714360235163,-500.0,0.00012987,2]
[324831217,1714360235171,-434.44787512,0.00012987,2]
[324831218,1714360235181,-500.0,0.00012987,2]
[324831219,1714360235191,-508.13357398,0.00012987,2]
[324831220,1714360235200,-349.49077765,0.00012987,2]
[324831221,1714360235213,-2415.05,0.00012987,2]
[324831222,1714360235222,-505.56057638,0.00012987,2]
[324831223,1714360235232,-516.87507857,0.00012987,2]
[324831224,1714360235241,-500.0,0.00012987,2]
[324831225,1714360235250,-506.36461042,0.00012987,2]
[324831226,1714360235260,-514.76873823,0.00012987,2]
[324831227,1714360235270,-513.40841566,0.00012987,2]
[324831228,1714360235279,-515.95566956,0.00012987,2]
[324831229,1714360235289,-500.0,0.00012987,2]
[324831230,1714360235298,-500.0,0.00012987,2]